bitfinex-derivatives/quotes_BTCF0:USTF0_20240824
["timestamp","ask_amount","ask_price","bid_price","bid_amount"]
[1724495558188,0.00023325,64318.0,64313.0,0.077708]
[1724495558383,0.00023325,64318.0,64317.0,0.167703]
[1724495558890,0.00023325,64318.0,64317.0,0.28610201]
[1724495559089,0.00023325,64318.0,64317.0,0.28614201]
[1724495559389,0.09023325,64318.0,64317.0,0.27365723]
[1724495559585,0.09023325,64318.0,64317.0,0.15525822]
[1724495559782,0.09023325,64318.0,64317.0,0.36365544]
[1724495559783,0.00023325,64318.0,64317.0,0.36365544]
[1724495559996,0.00023325,64318.0,64317.0,0.28614053]
[1724495559997,0.02123325,64318.0,64317.0,0.28614053]
[1724495560387,0.02123325,64318.0,64317.0,0.24523564]
[1724495560591,0.02123325,64318.0,64317.0,0.3636317]
[1724495560793,0.01323325,64318.0,64317.0,0.3636317]
[1724495560990,0.01823325,64318.0,64317.0,0.3636317]
[1724495561388,0.01023325,64318.0,64317.0,0.24523564]
[1724495561695,0.01023325,64318.0,64317.0,0.3636315]
[1724495561889,0.01023325,64318.0,64317.0,0.4413345]
[1724495562090,0.1412,64327.0,64317.0,0.30910765]
[1724495562091,0.09,64325.0,64317.0,0.30910765]
[1724495562288,0.1412,64327.0,64326.0,0.077692]
[1724495562490,0.2312,64327.0,64326.0,0.077692]
[1724495563092,0.2312,64327.0,64326.0,0.077732]
[1724495563497,0.2312,64327.0,64326.0,0.12420437]
[1724495563688,0.2312,64327.0,64326.0,0.077732]
[1724495564396,0.2452,64327.0,64326.0,0.077732]
[1724495564695,0.0776,64327.0,64326.0,0.168732]
[1724495564895,0.0776,64327.0,64326.0,0.21520437]
[1724495565294,0.0776,64327.0,64326.0,0.23788991]
[1724495565596,0.028,64327.0,64326.0,0.19141754]
[1724495567792,0.028,64327.0,64326.0,0.26910954]
[1724495568192,0.028,64327.0,64326.0,0.29339913]
[1724495568588,0.028,64327.0,64326.0,0.26910954]
[1724495568894,0.028,64327.0,64326.0,0.29339913]
[1724495569295,0.028,64327.0,64326.0,0.26910954]
[1724495572595,0.028,64327.0,64326.0,0.33982201]
[1724495574406,0.028,64327.0,64326.0,0.29339855]
[1724495574789,0.028,64327.0,64326.0,0.315533]
[1724495574995,0.028,64327.0,64326.0,0.33982168]
[1724495575296,0.028,64327.0,64326.0,0.33982174]
[1724495576200,0.028,64327.0,64326.0,0.70062174]
[1724495576901,0.028,64327.0,64326.0,0.62990954]
[1724495580603,0.028,64327.0,64326.0,0.55221754]
[1724495581895,0.028,64327.0,64326.0,0.598641]
[1724495583306,0.028,64327.0,64326.0,0.55221754]
[1724495584095,0.028,64327.0,64326.0,0.46221754]
[1724495584300,0.195691,64327.0,64326.0,0.078732]
[1724495587098,0.105691,64327.0,64326.0,0.078732]
[1724495589893,0.13570058,64327.0,64326.0,0.078732]
[1724495590304,0.2142885,64327.0,64326.0,0.078732]
[1724495590505,0.24429808,64327.0,64326.0,0.078732]
[1724495590709,0.05800958,64327.0,64326.0,0.078732]
[1724495591207,0.05800958,64327.0,64326.0,0.168732]
[1724495592499,0.05800958,64327.0,64326.0,0.078732]
[1724495592702,0.05800958,64327.0,64326.0,0.168732]
[1724495594012,0.077687,64331.0,64330.0,0.077687]
[1724495594807,0.077687,64331.0,64330.0,0.077727]
[1724495595403,0.077687,64331.0,64330.0,0.167727]
[1724495595900,0.086687,64331.0,64330.0,0.168727]
[1724495596915,0.017,64331.0,64330.0,0.169727]
[1724495597604,0.017,64331.0,64330.0,0.21621502]
[1724495598008,0.017,64331.0,64330.0,0.23957623]
[1724495598313,0.017,64331.0,64330.0,0.21737761]
[1724495598703,0.017,64331.0,64330.0,0.19308821]
[1724495599017,0.017,64331.0,64330.0,0.21737763]
[1724495600307,0.017,64331.0,64330.0,0.21737755]
[1724495601018,0.017,64331.0,64330.0,0.19308821]
[1724495605113,0.017,64331.0,64330.0,0.55388821]
[1724495605516,0.017,64331.0,64330.0,0.57817733]
[1724495607220,0.017,64331.0,64330.0,0.5976086]
[1724495608017,0.017,64331.0,64330.0,0.5076086]
[1724495608317,0.017,64331.0,64330.0,0.48331966]
[1724495608517,0.017,64331.0,64330.0,0.50760898]
[1724495609117,0.017,64331.0,64330.0,0.14680898]
[1724495609423,0.017,64331.0,64330.0,0.12737753]
[1724495611421,0.017,64331.0,64330.0,0.10308821]
[1724495611720,0.017,64331.0,64330.0,0.12737705]
[1724495614627,0.017,64331.0,64330.0,0.12737667]
[1724495616320,0.017,64331.0,64330.0,0.10308821]
[1724495617324,0.017,64331.0,64330.0,0.16507224]
[1724495618027,0.017,64331.0,64330.0,0.24275924]
[1724495618626,0.017,64331.0,64330.0,0.33275924]
[1724495619927,0.017,64331.0,64330.0,0.29020571]
[1724495620126,0.017,64331.0,64330.0,0.10308821]
[1724495620319,0.017,64331.0,64330.0,0.19308821]
[1724495622132,0.017,64331.0,64330.0,0.31145887]
[1724495622433,0.017,64331.0,64330.0,0.67225887]
[1724495623330,0.017,64331.0,64330.0,0.696547]
[1724495624228,0.017,64331.0,64330.0,0.606547]
[1724495624538,0.017,64331.0,64330.0,0.696547]
[1724495625131,0.017,64331.0,64330.0,0.21737634]
[1724495625324,0.017,64331.0,64330.0,0.57817634]
[1724495625531,0.017,64331.0,64330.0,0.48817634]
[1724495625731,0.017,64331.0,64330.0,0.57817634]
[1724495627134,0.08504199,64331.0,64330.0,0.57817634]
[1724495627431,0.25554304,64331.0,64330.0,0.48817634]
[1724495627728,0.25272799,64331.0,64330.0,0.41048934]
[1724495627933,0.3004056,64331.0,64330.0,0.38712813]
[1724495628136,0.3004056,64331.0,64330.0,0.46481513]
[1724495628521,0.25272799,64331.0,64330.0,0.38712813]
[1724495629935,2.16272799,64331.0,64330.0,0.38712813]
[1724495630233,3.01365632,64331.0,64320.0,0.00023325]
[1724495630436,0.167698,64321.0,64320.0,0.00023325]
[1724495630633,0.567698,64321.0,64320.0,0.00023325]
[1724495630826,1.176298,64321.0,64320.0,0.00023325]
[1724495631232,1.26940114,64321.0,64320.0,0.00023325]
[1724495631439,1.176338,64321.0,64320.0,0.00023325]
[1724495631633,1.176338,64321.0,64320.0,0.00123325]
[1724495631825,1.176338,64321.0,64320.0,0.00223325]
[1724495632329,1.176338,64321.0,64309.0,0.8552]
[1724495632330,0.077712,64310.0,64309.0,0.8552]
[1724495632634,0.077712,64310.0,64308.0,0.3608]
[1724495632833,0.09,64309.0,64308.0,0.3608]
[1724495633138,0.167713,64309.0,64308.0,0.3608]
[1724495633326,0.167753,64309.0,64308.0,0.3608]
[1724495633526,0.09004,64309.0,64302.0,0.32553325]
[1724495633732,0.09,64303.0,64302.0,0.32553325]
[1724495633931,0.16772,64303.0,64302.0,0.32553325]
[1724495634330,0.16776,64303.0,64302.0,0.32553325]
[1724495635037,0.16876,64303.0,64302.0,0.33753325]
[1724495636531,0.16976,64303.0,64302.0,0.35053325]
[1724495637135,0.16976,64303.0,64302.0,0.02523325]
[1724495638438,0.09204,64303.0,64302.0,0.10295425]
[1724495639138,0.00204,64303.0,64302.0,0.10295425]
[1724495640131,0.00204,64303.0,64302.0,0.09295425]
[1724495642530,0.09,64310.0,64308.0,0.077714]
[1724495643039,0.09,64310.0,64309.0,0.077713]
[1724495643735,0.092,64310.0,64309.0,0.077713]
[1724495643937,0.002,64310.0,64309.0,0.077713]
[1724495644243,0.001,64310.0,64309.0,0.172713]
[1724495644438,0.0456,64314.0,64313.0,0.077708]
[1724495644641,0.0456,64314.0,64313.0,0.167708]
[1724495646446,0.1356,64314.0,64313.0,0.077708]
[1724495646745,0.1356,64314.0,64313.0,0.078708]
[1724495648238,0.04673325,64315.0,64314.0,0.077707]
[1724495648239,0.00023325,64315.0,64314.0,0.077707]
[1724495648444,0.00023325,64315.0,64314.0,0.438507]
[1724495649540,0.00123325,64315.0,64314.0,0.438507]
[1724495651445,0.00123325,64315.0,64314.0,0.487007]
[1724495653943,0.00123325,64315.0,64314.0,0.53357195]
[1724495655247,0.00123325,64315.0,64314.0,0.487007]
[1724495657546,0.00123325,64315.0,64314.0,0.564714]
[1724495657843,0.00123325,64315.0,64314.0,0.6268006]
[1724495659248,0.00123325,64315.0,64314.0,0.564714]
[1724495659551,0.00123325,64315.0,64314.0,0.126207]
[1724495659745,0.00123325,64315.0,64314.0,0.487007]
[1724495662046,0.00123325,64315.0,64314.0,0.126207]
[1724495662245,0.00123325,64315.0,64314.0,0.487007]
[1724495664341,0.03124408,64315.0,64314.0,0.51130038]
[1724495665846,0.17101243,64315.0,64314.0,0.487007]
[1724495666247,0.03124408,64315.0,64314.0,0.487007]
[1724495666642,0.17076626,64315.0,64314.0,0.564714]
[1724495666841,0.06928995,64315.0,64314.0,0.564714]
[1724495667056,0.22458812,64315.0,64314.0,0.564714]
[1724495667347,0.22458812,64315.0,64314.0,1.14954744]
[1724495667348,0.15529817,64315.0,64314.0,1.14954744]
[1724495667552,0.15529817,64315.0,64314.0,1.54954744]
[1724495668347,0.15529817,64315.0,64314.0,1.57384024]
[1724495668546,0.15529817,64315.0,64314.0,1.17384024]
[1724495668747,0.15529817,64315.0,64314.0,1.14954744]
[1724495669142,0.15529817,64315.0,64314.0,1.24260743]
[1724495669347,0.15529817,64315.0,64314.0,1.14954744]
[1724495669549,0.15529817,64315.0,64314.0,0.78874744]
[1724495669748,0.15529817,64315.0,64314.0,1.51034744]
[1724495671060,0.15529817,64315.0,64314.0,1.60340743]
[1724495671445,0.15529817,64315.0,64314.0,1.51034744]
[1724495671652,0.00023325,64321.0,64320.0,0.077699]
[1724495671845,0.00023325,64321.0,64320.0,0.438499]
[1724495672652,0.00023325,64321.0,64320.0,0.51597482]
[1724495672854,0.00023325,64321.0,64320.0,0.51697482]
[1724495672855,0.00723325,64321.0,64320.0,0.51697482]
[1724495673153,0.01423325,64321.0,64320.0,0.63636175]
[1724495673351,0.01423325,64321.0,64320.0,0.63658493]
[1724495674256,0.0493,64325.0,64324.0,0.077695]
[1724495674453,0.0493,64325.0,64324.0,0.167695]
[1724495675454,0.0683,64325.0,64324.0,0.169695]
[1724495676660,0.0683,64325.0,64324.0,0.530495]
[1724495676861,0.0683,64325.0,64324.0,0.169695]
[1724495677058,0.0683,64325.0,64324.0,0.530495]
[1724495678755,0.0683,64325.0,64324.0,0.169695]
[1724495678962,0.0683,64325.0,64324.0,0.530495]
[1724495683966,0.0683,64325.0,64324.0,0.440495]
[1724495684359,0.0683,64325.0,64324.0,0.530495]
[1724495684756,0.0683,64325.0,64324.0,0.57699523]
[1724495685956,0.0683,64325.0,64324.0,0.21619523]
[1724495686264,0.0683,64325.0,64324.0,0.57699523]
[1724495687362,0.0683,64325.0,64324.0,0.530495]
[1724495687559,0.0683,64325.0,64324.0,0.5547862]
[1724495689265,0.0683,64325.0,64324.0,0.169695]
[1724495689568,0.0683,64325.0,64324.0,0.530495]
[1724495690064,0.0683,64325.0,64324.0,0.5547862]
[1724495691062,0.0683,64325.0,64324.0,0.530495]
[1724495692568,0.019,64325.0,64324.0,0.169695]
[1724495692865,0.019,64325.0,64324.0,0.530495]
[1724495693071,0.019,64325.0,64324.0,0.64887186]
[1724495693467,0.019,64325.0,64324.0,0.530495]
[1724495695070,0.008,64325.0,64324.0,0.533495]
[1724495695466,0.06804556,64325.0,64324.0,0.537495]
[1724495695768,0.06804556,64325.0,64324.0,0.898295]
[1724495696571,0.23859835,64325.0,64324.0,0.898295]
[1724495696768,0.06804556,64325.0,64324.0,0.898295]
[1724495697282,0.06804556,64325.0,64324.0,0.176695]
[1724495697475,0.06804556,64325.0,64324.0,0.898295]
[1724495697674,0.23859835,64325.0,64324.0,0.898295]
[1724495697878,0.06804556,64325.0,64324.0,0.9225844]
[1724495698373,0.17055279,64326.0,64325.0,0.077693]
[1724495698575,0.17055279,64326.0,64325.0,0.19606986]
[1724495698874,0.17055279,64326.0,64325.0,1.01072985]
[1724495699276,0.17055279,64326.0,64325.0,0.31341925]
[1724495699478,0.17055279,64326.0,64325.0,1.03501925]
[1724495699679,0.17055279,64326.0,64325.0,1.04201925]
[1724495700075,0.17055279,64326.0,64325.0,0.94895926]
[1724495700467,0.17055279,64326.0,64325.0,1.04201925]
[1724495700883,0.17055279,64326.0,64325.0,0.32041925]
[1724495701177,0.17055279,64326.0,64325.0,1.04201925]
[1724495701379,0.17055279,64326.0,64325.0,0.8305824]
[1724495702081,0.07791925,64331.0,64329.0,0.077688]
[1724495702280,0.07791925,64331.0,64330.0,0.07084198]
[1724495702879,0.07791925,64331.0,64330.0,0.43164198]
[1724495703277,0.07991925,64331.0,64330.0,0.43164198]
[1724495703677,0.07991925,64331.0,64330.0,0.50932898]
[1724495703885,0.07991925,64331.0,64330.0,0.14852898]
[1724495704278,0.07991925,64331.0,64330.0,0.50932898]
[1724495704479,0.07991925,64331.0,64330.0,0.4627764]
[1724495705072,0.08091925,64331.0,64330.0,0.4627764]
[1724495705277,0.07991925,64331.0,64330.0,0.4627764]
[1724495705481,0.08091925,64331.0,64330.0,0.4627764]
[1724495705979,0.08091925,64331.0,64330.0,0.46142091]
[1724495706680,0.08091925,64331.0,64330.0,0.10062091]
[1724495706873,0.08091925,64331.0,64330.0,0.46142091]
[1724495707070,0.08091925,64331.0,64330.0,0.10062091]
[1724495707279,0.08091925,64331.0,64330.0,0.46142091]
[1724495710984,0.08091925,64331.0,64330.0,0.10062091]
[1724495711390,0.08091925,64331.0,64330.0,0.16270107]
[1724495711591,0.08091925,64331.0,64330.0,0.13976716]
[1724495712178,0.08091925,64331.0,64330.0,0.13976724]
[1724495712480,0.08091925,64331.0,64330.0,0.077687]
[1724495713183,0.08091925,64331.0,64330.0,0.10197849]
[1724495715290,0.08091925,64331.0,64330.0,0.14853922]
[1724495715984,0.08091925,64331.0,64330.0,0.10197849]
[1724495716185,0.08091925,64331.0,64330.0,0.14853922]
[1724495717194,0.08091925,64331.0,64330.0,0.14853907]
[1724495719187,0.15858649,64331.0,64330.0,0.14853907]
[1724495719487,0.08091925,64331.0,64330.0,0.14853907]
[1724495719882,0.15860525,64331.0,64330.0,0.02429134]
[1724495720288,0.15860525,64331.0,64327.0,0.3608]
[1724495720289,0.07769,64328.0,64327.0,0.3608]
[1724495720487,0.16769,64328.0,64327.0,0.3850927]
[1724495721089,0.16769,64328.0,64327.0,0.3608]
[1724495721291,1.03409,64328.0,64327.0,0.3608]
[1724495721487,1.03409,64328.0,64327.0,0.3628]
[1724495721895,1.03409,64328.0,64327.0,0.3638]
[1724495722487,0.94409,64328.0,64327.0,0.3638]
[1724495722684,1.03409,64328.0,64327.0,0.3638]
[1724495723799,0.63409,64328.0,64327.0,0.3638]
[1724495723992,0.16773,64328.0,64327.0,0.3638]
[1724495724485,0.52853,64328.0,64327.0,0.04956073]
[1724495725291,0.16773,64328.0,64327.0,0.04956073]
[1724495727390,0.16773,64328.0,64327.0,0.003]
[1724495727596,0.63409,64328.0,64327.0,0.003]
[1724495728098,0.63909,64328.0,64327.0,0.002]
[1724495728300,0.63909,64328.0,64321.0,0.38396648]
[1724495728301,0.077697,64322.0,64321.0,0.38396648]
[1724495728485,0.167697,64322.0,64321.0,0.40825999]
[1724495729091,0.167737,64322.0,64321.0,0.40825999]
[1724495729493,0.167737,64322.0,64321.0,0.41025999]
[1724495729688,0.167737,64322.0,64321.0,0.38696648]
[1724495729891,0.167737,64322.0,64321.0,0.41126002]
[1724495730292,0.167737,64322.0,64321.0,0.05046002]
[1724495730598,0.167737,64322.0,64321.0,0.11254026]
[1724495730790,0.167737,64322.0,64321.0,0.47334026]
[1724495733594,0.167737,64322.0,64321.0,0.41126002]
[1724495734192,0.167737,64322.0,64321.0,0.05046002]
[1724495734391,0.167737,64322.0,64321.0,0.41126002]
[1724495735492,0.23579418,64322.0,64321.0,0.41126002]
[1724495735697,0.32190614,64322.0,64321.0,0.41126002]
[1724495736001,0.23579418,64322.0,64321.0,0.41126002]
[1724495736189,0.23579418,64322.0,64321.0,0.38696648]
[1724495739188,0.23579461,64322.0,64321.0,0.38696648]
[1724495739603,0.167737,64322.0,64321.0,0.44904672]
[1724495740504,0.167737,64322.0,64321.0,0.38696648]
[1724495740695,0.167737,64322.0,64321.0,0.44903483]
[1724495742192,0.167737,64322.0,64321.0,0.02616648]
[1724495746395,0.167737,64322.0,64321.0,0.08823483]
[1724495746705,0.167737,64322.0,64321.0,0.02616648]
[1724495747100,0.167737,64322.0,64321.0,0.08823483]
[1724495747295,0.167737,64322.0,64321.0,0.46466448]
[1724495747500,0.167737,64322.0,64321.0,0.48895908]
[1724495748398,0.167737,64322.0,64321.0,0.12815908]
[1724495748604,0.24540828,64322.0,64321.0,0.15044455]
[1724495748802,0.24540828,64322.0,64321.0,0.12815833]
[1724495749002,0.24540844,64322.0,64321.0,0.12815833]
[1724495749299,0.24540844,64322.0,64321.0,0.5355384]
[1724495749502,0.167737,64322.0,64321.0,0.53555084]
[1724495749703,0.167737,64322.0,64321.0,0.48895833]
[1724495749897,0.167737,64322.0,64321.0,0.53555135]
[1724495751403,0.167737,64322.0,64321.0,0.48895833]
[1724495751806,0.167737,64322.0,64321.0,0.46466448]
[1724495752012,0.167737,64322.0,64321.0,0.17475256]
[1724495753104,0.167737,64322.0,64321.0,0.48895779]
[1724495753303,0.167737,64322.0,64321.0,0.53555415]
[1724495754105,0.167737,64322.0,64321.0,0.48895779]
[1724495754907,0.167737,64322.0,64321.0,0.53555654]
[1724495755107,0.167737,64322.0,64321.0,0.51126323]
[1724495755500,0.167737,64322.0,64321.0,0.46466448]
[1724495756006,0.167737,64322.0,64321.0,0.10386448]
[1724495756513,0.167737,64322.0,64321.0,0.15046545]
[1724495757706,0.167737,64322.0,64321.0,0.14946545]
[1724495757905,0.167737,64322.0,64321.0,0.17475949]
[1724495758609,0.167737,64322.0,64321.0,0.12815852]
[1724495759314,0.167737,64322.0,64321.0,0.10499204]
[1724495759701,0.167737,64322.0,64321.0,0.12821149]
[1724495760506,0.167737,64322.0,64321.0,0.10499204]
[1724495765013,0.19043141,64322.0,64321.0,0.10499204]
[1724495765911,2.10043141,64322.0,64321.0,0.10499204]
[1724495766513,2.10043141,64322.0,64321.0,0.12928702]
[1724495768616,2.01043141,64322.0,64321.0,0.10499298]
[1724495768811,2.10043141,64322.0,64321.0,0.10499298]
[1724495769317,2.10043141,64322.0,64321.0,0.080698]
[1724495769522,2.10043141,64322.0,64321.0,0.10499285]
[1724495770622,2.10043141,64322.0,64321.0,0.02729485]
[1724495771423,2.10043141,64322.0,64321.0,0.08943571]
[1724495772617,2.10043141,64322.0,64321.0,0.0894359]
[1724495773621,2.2161839,64322.0,64321.0,0.02729504]
[1724495773823,0.3061839,64322.0,64321.0,0.02729504]
[1724495774123,0.25849274,64322.0,64321.0,0.02729504]
[1724495774622,0.19348949,64322.0,64321.0,0.02729504]
[1724495774819,0.42335738,64322.0,64321.0,0.02729504]
[1724495775419,0.28348949,64322.0,64321.0,0.02729504]
[1724495775820,0.28348949,64322.0,64321.0,0.10499304]
[1724495776222,0.28348708,64322.0,64321.0,0.10499304]
[1724495776726,0.167737,64322.0,64321.0,0.10499304]
[1724495778824,0.167737,64322.0,64321.0,0.10499227]
[1724495781433,0.167737,64322.0,64321.0,0.080698]
[1724495784230,0.167737,64322.0,64321.0,0.14282461]
[1724495784432,0.167737,64322.0,64321.0,0.080698]
[1724495784829,0.167737,64322.0,64321.0,0.14282579]
[1724495785023,0.167737,64322.0,64321.0,0.14282612]
[1724495787632,0.167737,64322.0,64321.0,0.080698]
[1724495788640,0.167737,64322.0,64321.0,0.10499312]
[1724495791626,0.167737,64322.0,64321.0,0.10499269]
[1724495795441,0.167737,64322.0,64321.0,0.16714219]
[1724495795628,0.167737,64322.0,64321.0,0.080698]
[1724495796435,0.245434,64322.0,64321.0,0.02729512]
[1724495796637,0.245434,64322.0,64314.0,0.00023325]
[1724495796638,0.1554,64319.0,64318.0,0.06215576]
[1724495796941,0.1554,64319.0,64316.0,0.06215576]
[1724495796942,0.155406,64317.0,64316.0,0.06215576]
[1724495797131,0.155408,64316.0,64315.0,0.06215576]
[1724495797335,0.077705,64315.0,64314.0,0.00023325]
[1724495797833,0.077705,64315.0,64314.0,0.06238901]
[1724495798030,0.077745,64315.0,64314.0,0.06238901]
[1724495798633,0.078745,64315.0,64314.0,0.07038901]
[1724495798827,0.078745,64315.0,64314.0,0.00823325]
[1724495799343,0.078745,64315.0,64314.0,0.01723325]
[1724495799641,0.078745,64315.0,64314.0,0.06382554]
[1724495799845,0.078745,64315.0,64314.0,0.01723325]
[1724495801339,0.078745,64315.0,64314.0,0.06380844]
[1724495801540,0.15645,64315.0,64314.0,0.01723325]
[1724495802239,0.15645,64315.0,64314.0,0.04153126]
[1724495802439,0.15645,64315.0,64314.0,0.01723325]
[1724495803136,0.15645,64315.0,64314.0,0.06380711]
[1724495803336,0.1795731,64315.0,64314.0,0.06380711]
[1724495803532,0.1795731,64315.0,64314.0,0.01723325]
[1724495803733,0.1795731,64315.0,64314.0,0.06380711]
[1724495803936,0.7237181,64315.0,64314.0,0.08810163]
[1724495804239,0.7237181,64315.0,64302.0,0.3608]
[1724495804240,0.077719,64303.0,64302.0,0.3608]
[1724495804431,0.167719,64303.0,64302.0,0.38365133]
[1724495805039,0.167759,64303.0,64302.0,0.38365133]
[1724495805536,0.167759,64303.0,64302.0,0.39765133]
[1724495805537,0.168759,64303.0,64302.0,0.39765133]
[1724495805739,0.168759,64303.0,64302.0,0.41165133]
[1724495809337,0.19136938,64303.0,64302.0,0.41165133]
[1724495810543,0.19136938,64303.0,64302.0,0.05085133]
[1724495815445,0.19136938,64303.0,64302.0,0.028]
[1724495815846,2.10136938,64303.0,64302.0,0.028]
[1724495822145,2.17908838,64303.0,64302.0,0.028]
[1724495826653,2.17908838,64303.0,64298.0,0.00012]
[1724495826654,0.155448,64299.0,64298.0,0.00012]
[1724495826854,0.155454,64297.0,64296.0,0.00023325]
[1724495827159,0.59382055,64297.0,64296.0,0.00023325]
[1724495827460,0.982854,64297.0,64296.0,0.00023325]
[1724495827652,0.516254,64297.0,64296.0,0.00023325]
[1724495828253,0.517254,64297.0,64296.0,0.00323325]
[1724495830364,0.518254,64297.0,64296.0,0.00323325]
[1724495834957,0.518294,64297.0,64296.0,0.00323325]
[1724495835870,0.157494,64297.0,64296.0,0.00323325]
[1724495836164,0.518294,64297.0,64296.0,0.00323325]
[1724495837158,0.518294,64297.0,64283.0,0.04656194]
[1724495837159,0.36284,64297.0,64283.0,0.04656194]
[1724495837358,0.09,64284.0,64279.0,0.1105863]
[1724495837557,0.3608,64287.0,64279.0,0.1883343]
[1724495837558,0.09,64280.0,64279.0,0.1883343]
[1724495838263,0.09,64280.0,64279.0,0.12617854]
[1724495838264,0.09004,64280.0,64279.0,0.12617854]
[1724495838467,0.08704,64280.0,64279.0,0.1883343]
[1724495838961,0.08804,64280.0,64279.0,0.08087854]
[1724495839163,0.08804,64280.0,64279.0,0.1037494]
[1724495839360,0.08804,64280.0,64279.0,0.12805918]
[1724495839564,0.08804,64280.0,64279.0,0.1037494]
[1724495839759,0.08804,64280.0,64279.0,0.08087854]
[1724495839959,0.165787,64280.0,64279.0,0.08087854]
[1724495840366,0.166787,64280.0,64279.0,0.08087854]
[1724495841067,0.166787,64280.0,64279.0,0.04663738]
[1724495841274,0.166787,64280.0,64279.0,0.00013054]
[1724495842573,0.165787,64280.0,64279.0,0.00013054]
[1724495842774,0.166787,64280.0,64279.0,0.00013054]
[1724495843075,2.076787,64280.0,64279.0,0.00013054]
[1724495847571,2.154534,64280.0,64279.0,0.00013054]
[1724495849175,2.067534,64280.0,64279.0,0.00013054]
[1724495849476,2.157534,64280.0,64279.0,0.00013054]
[1724495850577,2.067534,64280.0,64279.0,0.00013054]
[1724495850772,2.157534,64280.0,64279.0,0.00013054]
[1724495857878,1.989787,64280.0,64279.0,0.00013054]
[1724495858273,2.079787,64280.0,64279.0,0.00013054]
[1724495858474,0.00204,64280.0,64279.0,0.07787854]
[1724495858670,0.09204,64280.0,64279.0,0.07787854]
[1724495860677,0.00204,64280.0,64279.0,0.07787854]
[1724495862283,0.00204,64280.0,64279.0,0.1400343]
[1724495862579,0.00023325,64286.0,64285.0,0.077741]
[1724495862886,0.00023325,64286.0,64285.0,0.167741]
[1724495863073,0.00023325,64286.0,64285.0,0.528541]
[1724495863380,0.00023325,64286.0,64285.0,0.60618231]
[1724495863687,0.00023325,64286.0,64285.0,0.64699486]
[1724495864073,0.00123325,64286.0,64285.0,0.64699486]
[1724495864273,0.00223325,64286.0,64285.0,0.72461795]
[1724495864478,0.00223325,64286.0,64285.0,1.07284409]
[1724495865074,0.00223325,64286.0,64285.0,0.995221]
[1724495865280,0.00223325,64286.0,64285.0,1.07284409]
[1724495865484,0.00223325,64286.0,64285.0,0.995221]
[1724495865685,0.09223325,64286.0,64285.0,0.46125386]
[1724495867292,0.09223325,64286.0,64285.0,0.95223952]
[1724495867483,0.09223325,64286.0,64285.0,0.48555952]
[1724495868782,0.09223325,64286.0,64285.0,0.46125386]
[1724495868985,0.09223325,64286.0,64285.0,0.48555946]
[1724495871691,0.09223325,64286.0,64285.0,0.54759276]
[1724495872090,0.09223325,64286.0,64285.0,0.54759355]
[1724495872290,0.09223325,64286.0,64279.0,0.00017054]
[1724495872291,0.09223325,64286.0,64284.0,0.0465256]
[1724495872483,0.09,64285.0,64282.0,0.1242696]
[1724495872678,0.09,64285.0,64282.0,0.077744]
[1724495872679,0.1839,64285.0,64282.0,0.077744]
[1724495873487,4e-05,64283.0,64282.0,0.077744]
[1724495873691,0.09004,64283.0,64282.0,0.1242696]
[1724495873889,0.167784,64283.0,64282.0,0.1242696]
[1724495874796,0.168784,64283.0,64282.0,0.1242696]
[1724495875583,0.169784,64283.0,64282.0,0.1242696]
[1724495876297,0.169784,64283.0,64282.0,0.077744]
[1724495876596,0.169784,64283.0,64282.0,0.12427577]
[1724495876995,0.09204,64283.0,64280.0,0.3608]
[1724495877192,0.077745,64282.0,64281.0,0.04653342]
[1724495877694,0.077746,64281.0,64280.0,0.3608]
[1724495878090,0.077746,64281.0,64280.0,0.38510903]
[1724495878393,0.077786,64281.0,64280.0,0.3608]
[1724495878791,0.077786,64281.0,64280.0,0.38510899]
[1724495878995,0.078786,64281.0,64280.0,0.38510899]
[1724495879389,0.078786,64281.0,64280.0,0.3608]
[1724495879582,0.078786,64281.0,64280.0,0.38510901]
[1724495879787,0.078786,64281.0,64280.0,0.44714173]
[1724495879997,0.079786,64281.0,64280.0,0.44714173]
[1724495880787,0.079786,64281.0,64280.0,0.52488873]
[1724495881786,0.00204,64281.0,64280.0,0.52488873]
[1724495882396,0.00204,64281.0,64280.0,0.46285601]
[1724495883814,0.00204,64281.0,64280.0,0.46285486]
[1724495885094,0.00204,64281.0,64280.0,0.10205486]
[1724495885400,0.00204,64281.0,64280.0,0.46285486]
[1724495886298,0.00204,64281.0,64280.0,0.10205486]
[1724495886495,0.00204,64281.0,64280.0,0.46285486]
[1724495888802,0.00204,64281.0,64280.0,0.54060181]
[1724495889808,0.00204,64281.0,64280.0,0.6376701]
[1724495890004,0.00204,64281.0,64280.0,0.59391709]
[1724495890207,0.00204,64281.0,64280.0,0.63766879]
[1724495890599,0.00204,64281.0,64280.0,0.75612816]
[1724495891004,0.00204,64281.0,64280.0,0.63766879]
[1724495891597,0.00204,64281.0,64280.0,0.75612909]
[1724495891796,0.00204,64281.0,64280.0,0.678506]
[1724495892503,0.00204,64281.0,64280.0,0.5600457]
[1724495892711,0.00204,64281.0,64280.0,0.67850416]
[1724495893009,0.00204,64281.0,64280.0,0.63475246]
[1724495893396,0.00204,64281.0,64280.0,0.65905861]
[1724495894105,0.00204,64281.0,64280.0,0.38825861]
[1724495894312,0.00204,64281.0,64280.0,1.10985861]
[1724495895607,0.00023325,64286.0,64285.0,0.077741]
[1724495895805,0.00023325,64286.0,64285.0,0.31050561]
[1724495896303,0.00023325,64286.0,64285.0,0.31054482]
[1724495897009,0.00123325,64286.0,64285.0,0.26975472]
[1724495897601,0.00123325,64286.0,64285.0,0.38821273]
[1724495897809,0.00223325,64286.0,64285.0,0.38821273]
[1724495898114,0.00223325,64286.0,64285.0,0.38821267]
[1724495898411,0.00223325,64286.0,64285.0,0.38821107]
[1724495899209,0.00223325,64286.0,64285.0,0.4111061]
[1724495899414,0.00223325,64286.0,64285.0,0.3868016]
[1724495899608,0.00223325,64286.0,64285.0,0.41110757]
[1724495900611,0.00223325,64286.0,64285.0,0.33343921]
[1724495900915,0.00223325,64286.0,64285.0,0.41111647]
[1724495901213,0.00223325,64286.0,64285.0,0.33343921]
[1724495901413,0.00223325,64286.0,64285.0,0.41111845]
[1724495901613,0.00223325,64286.0,64285.0,0.33343921]
[1724495902208,0.00223325,64286.0,64285.0,0.41111811]
[1724495902609,0.00223325,64286.0,64285.0,0.38681214]